bitfinex-derivatives/quotes_ETHF0:USTF0_20251012
["timestamp","ask_amount","ask_price","bid_price","bid_amount"]
[1760304496446,0.0017237,4105.9,4105.7,1.89771]
[1760304496652,2.58208263,4105.8,4105.7,1.89771]
[1760304497262,2.58208263,4105.8,4105.7,0.43802]
[1760304497555,2.58208263,4105.8,4105.4,0.43804]
[1760304497859,2.58208263,4105.8,4105.5,1.4597]
[1760304498353,2.58208263,4105.8,4105.2,0.00202157]
[1760304498559,0.0017237,4105.9,4105.8,1.4597]
[1760304498861,2.60847439,4105.8,4105.6,3.2078]
[1760304499056,2.61019809,4105.9,4105.6,3.2078]
[1760304499259,3.2095237,4105.9,4105.2,0.44009157]
[1760304499455,2.55528103,4105.8,4105.3,0.43805]
[1760304499760,2.55528103,4105.8,4105.5,0.43803]
[1760304499953,0.0017237,4105.9,4105.8,0.9879]
[1760304500253,0.0017237,4105.9,4105.8,5.6554]
[1760304501050,3.2078,4106.9,4106.5,1.4597]
[1760304501250,3.2078,4107.5,4107.2,0.43785]
[1760304501460,3.2078,4107.5,4107.4,0.43783]
[1760304501653,3.2078,4107.5,4107.4,1.89673]
[1760304502052,0.022,4107.8,4107.7,1.8967]
[1760304502365,0.02389391,4107.8,4107.7,1.8967]
[1760304502750,3.2078,4109.0,4108.0,0.5826]
[1760304502951,0.6993515,4108.9,4108.4,0.43772]
[1760304503257,3.37844277,4108.8,4108.7,1.4589]
[1760304503449,0.6993515,4108.8,4108.7,1.4589]
[1760304503759,3.2078,4109.5,4109.2,1.89654]
[1760304503948,0.92212105,4109.3,4109.2,1.89654]
[1760304504149,0.92283896,4109.3,4109.2,1.89654]
[1760304504359,0.22291962,4109.3,4109.2,1.89654]
[1760304505070,3.2078,4110.4,4109.6,1.09401]
[1760304505256,3.2078,4110.4,4110.3,1.4589]
[1760304505560,3.90689696,4110.4,4110.3,1.4589]
[1760304505856,3.2078,4110.4,4110.3,1.4589]
[1760304506059,0.00178462,4110.4,4110.3,1.4589]
[1760304506766,3.2078,4111.8,4110.4,1.09378]
[1760304506956,3.2078,4111.3,4111.1,1.4589]
[1760304507260,2.75602086,4111.2,4110.5,1.4589]
[1760304507459,3.64523,4111.3,4110.5,1.4589]
[1760304507650,2.75671065,4111.1,4110.7,1.4589]
[1760304507849,2.7586207,4111.1,4110.7,0.43748]
[1760304508053,0.00191005,4111.1,4110.4,3.7904]
[1760304508260,0.00191005,4111.1,4111.0,1.4589]
[1760304508458,0.00191005,4111.1,4110.5,0.4375]
[1760304508650,2.52970038,4111.0,4110.5,0.4375]
[1760304508850,0.37671937,4111.1,4110.6,0.43749]
[1760304509057,0.00191005,4111.1,4110.8,0.43747]
[1760304509263,0.00191005,4111.1,4111.0,1.4589]
[1760304510861,3.2078,4111.8,4111.3,1.4589]
[1760304511058,3.2078,4111.8,4111.7,0.43738]
[1760304511254,3.6451,4112.4,4111.7,0.43738]
[1760304511459,3.6451,4112.4,4111.8,0.43736]
[1760304511655,0.20697329,4112.3,4111.8,0.43736]
[1760304511856,0.2086982,4112.3,4111.9,1.4589]
[1760304512156,0.43735,4111.9,4111.8,0.00273899]
[1760304512363,5.12855,4111.9,4111.8,0.00273899]
[1760304512659,8.98295957,4111.9,4111.8,0.00273899]
[1760304513159,5.43207623,4111.9,4111.8,0.00273899]
[1760304513460,5.43207623,4111.9,4111.8,1.46163899]
[1760304514050,2.22427623,4111.9,4111.8,1.46163899]
[1760304514453,0.43904491,4112.3,4111.8,1.46163899]
[1760304514454,0.20697329,4112.2,4112.1,1.4589]
[1760304514763,0.00172491,4112.3,4112.2,1.89622]
[1760304515561,2.1964134,4112.3,4111.9,3.2078]
[1760304515860,0.00172491,4112.3,4111.9,1.4589]
[1760304516061,3.2078,4112.0,4111.9,1.4589]
[1760304516650,6.01725495,4112.0,4111.8,0.00273899]
[1760304517056,1.4834,4111.9,4111.8,0.00273899]
[1760304517359,1.54254457,4111.9,4111.8,0.00273899]
[1760304517561,4.76150003,4111.9,4111.8,0.00273899]
[1760304518264,3.2078,4112.0,4111.8,1.46163899]
[1760304518663,2.43124952,4111.9,4111.8,0.00273899]
[1760304518858,2.43124952,4111.9,4111.8,1.46163899]
[1760304519168,3.2078,4112.0,4111.8,1.46163899]
[1760304519366,3.2078,4112.0,4111.8,1.89899899]
[1760304519568,3.2078,4112.0,4111.8,1.46163899]
[1760304520068,3.2078,4112.0,4111.8,1.89899899]
[1760304520267,3.2078,4112.0,4111.9,1.4589]
[1760304520970,3.2078,4112.0,4111.8,1.46163899]
[1760304521170,3.2078,4112.0,4111.9,1.4589]
[1760304521359,5.57990495,4112.0,4111.9,1.4589]
[1760304521766,6.01725495,4112.0,4111.8,1.46163899]
[1760304521967,5.57990495,4112.0,4111.9,1.4589]
[1760304522172,5.57990495,4112.0,4111.8,0.44009899]
[1760304522173,5.02080788,4111.9,4111.8,0.00273899]
[1760304522671,1.97989457,4111.9,4111.8,0.00273899]
[1760304522875,3.60156577,4111.9,4111.8,0.00273899]
[1760304523064,0.49649457,4111.9,4111.8,0.00273899]
[1760304525171,1.95169457,4111.9,4111.8,0.00273899]
[1760304526368,5.17794517,4111.9,4111.8,0.00273899]
[1760304527973,0.49649457,4111.9,4111.8,0.00273899]
[1760304528373,1.95169457,4111.9,4111.8,0.00273899]
[1760304528969,0.49649457,4111.9,4111.8,0.00273899]
[1760304529669,1.15195015,4111.9,4111.8,0.00273899]
[1760304530681,5.71886795,4111.9,4111.8,0.00273899]
[1760304533170,7.00800477,4111.9,4111.8,0.00273899]
[1760304533380,5.55280477,4111.9,4111.8,0.00273899]
[1760304533579,5.72786795,4111.9,4111.8,0.00273899]
[1760304537781,0.43742,4111.3,4111.0,1.4181]
[1760304537982,1.09288558,4111.2,4111.0,1.85555]
[1760304538186,0.65545558,4111.1,4111.0,1.85555]
[1760304538386,1.09289558,4111.1,4111.0,1.4181]
[1760304538580,0.77376774,4111.1,4111.0,0.00181835]
[1760304538882,0.76547435,4111.1,4111.0,1.41991835]
[1760304539183,1.20291435,4111.1,4111.0,1.41991835]
[1760304539782,1.20291435,4111.1,4111.0,1.85736835]
[1760304539977,0.76547435,4111.1,4111.0,1.85736835]
[1760304541480,0.64716219,4111.1,4111.0,2.43586835]
[1760304541678,0.86021991,4112.2,4112.1,1.4181]
[1760304541879,0.00172491,4112.3,4112.2,1.4181]
[1760304542074,0.86021991,4113.2,4113.0,0.5785]
[1760304542279,0.86021991,4113.6,4113.5,1.01568]
[1760304542578,3.2078,4114.2,4114.0,0.43713]
[1760304542778,3.2078,4114.2,4114.0,1.85523]
[1760304542981,3.2078,4114.2,4114.0,0.43713]
[1760304543183,0.05,4114.3,4114.0,0.43713]
[1760304543184,0.657,4115.3,4114.2,1.4181]
[1760304543382,0.58918722,4115.2,4114.4,1.4181]
[1760304543680,0.58918722,4115.2,4114.6,0.43706]
[1760304543681,3.2078,4115.0,4114.6,0.43706]
[1760304543880,3.2078,4115.0,4114.7,1.4181]
[1760304544079,3.20953654,4115.0,4114.6,0.43706]
[1760304544275,0.65816278,4114.9,4114.8,1.4181]
[1760304544676,0.43707,4114.6,4114.1,1.4181]
[1760304544977,0.43707,4114.6,4114.0,1.01759027]
[1760304544978,0.43706,4114.7,4114.2,0.4371]
[1760304545284,0.43708,4114.5,4114.3,1.4181]
[1760304545478,0.23626217,4114.6,4114.2,0.43711]
[1760304545689,0.65816278,4114.8,4114.1,1.4181]
[1760304545875,3.20953654,4115.0,4114.1,1.4181]
[1760304546076,0.20672689,4114.9,4114.7,1.85515]
[1760304546276,0.00173654,4115.0,4114.7,0.43705]
[1760304546474,3.20953654,4115.0,4114.7,0.43705]
[1760304546680,0.65816278,4114.9,4114.8,1.4181]
[1760304546891,0.00173654,4115.0,4114.8,1.4181]
[1760304547091,0.00173654,4115.0,4114.8,0.43704]
[1760304547289,0.00173654,4115.0,4114.9,1.4181]
[1760304547677,1.4642,4116.3,4114.9,1.4181]
[1760304547678,3.2078,4115.9,4114.9,4.6259]
[1760304547991,1.4642,4119.3,4117.9,1.4181]
[1760304548188,3.2078,4119.9,4119.0,3.2078]
[1760304548484,0.299,4118.7,4117.2,3.2078]
[1760304548679,0.299,4118.4,4116.7,3.2078]
[1760304548888,3.2078,4118.0,4116.7,3.21041039]
[1760304549081,0.43676,4117.6,4116.7,3.21041039]
[1760304549281,0.43677,4117.5,4116.7,3.21041039]
[1760304549487,0.4368,4117.2,4116.7,3.21041039]
[1760304549878,3.22584494,4117.1,4116.7,3.21041039]
[1760304550585,0.299,4117.1,4116.7,0.00261039]
[1760304550786,0.43681,4117.1,4116.7,0.00261039]
[1760304550985,3.89765757,4117.0,4116.7,0.00261039]
[1760304551186,3.2078,4116.8,4116.7,0.00261039]
[1760304551388,3.16183757,4117.2,4116.7,1.42071039]
[1760304551693,5.92646615,4117.4,4116.8,1.4181]
[1760304551890,3.11490416,4117.1,4117.0,0.4368]
[1760304552186,3.11490416,4117.6,4117.1,0.43679]
[1760304552379,3.11490416,4117.6,4116.7,3.78891039]
[1760304552578,5.48968615,4118.1,4116.8,1.85493]
[1760304552790,5.48968615,4118.1,4117.0,0.43681]
[1760304552791,0.43675,4117.7,4117.0,0.43681]
[1760304552993,3.2078,4117.8,4117.2,0.43679]
[1760304553197,3.2078,4117.8,4116.8,1.4181]
[1760304553392,5.48968615,4118.1,4116.8,1.4181]
[1760304553702,3.57047007,4118.0,4117.3,0.43677]
[1760304553993,0.00266158,4118.4,4117.9,3.2078]
[1760304554195,0.00266158,4118.4,4118.3,1.85478]
[1760304555692,3.2078,4120.7,4118.9,1.4181]
[1760304555883,3.2078,4120.2,4119.1,3.2078]
[1760304556194,3.09499281,4119.9,4118.9,1.4181]
[1760304556394,3.2078,4119.6,4118.6,3.2078]
[1760304556583,3.20958606,4119.6,4118.6,3.2078]
[1760304556783,3.53154281,4119.5,4118.6,3.64444]
[1760304557292,0.43656,4119.4,4118.8,0.43661]
[1760304557685,0.00178606,4119.6,4119.0,0.4366]
[1760304557886,0.00178606,4119.6,4119.2,0.43657]
[1760304558087,0.00178606,4119.6,4119.3,1.85466]
[1760304558493,0.00178606,4119.6,4119.4,1.4181]
[1760304559296,0.00178606,4119.6,4118.5,1.09163]
[1760304559297,0.43661,4119.0,4118.6,3.2078]
[1760304559497,0.3017,4119.2,4118.6,4.6259]
[1760304559498,0.43662,4118.9,4118.6,4.6259]
[1760304559699,3.20939979,4118.9,4118.6,4.6259]
[1760304559892,3.17300204,4119.1,4118.6,4.6259]
[1760304560093,0.3017,4119.2,4118.6,4.6259]
[1760304560591,0.43668,4118.3,4118.1,3.2078]
[1760304560791,0.43671,4118.0,4117.6,3.2078]
[1760304560990,3.2078,4118.6,4117.6,3.2078]
[1760304560991,0.43672,4117.9,4117.7,1.4181]
[1760304561396,3.2078,4118.6,4117.6,3.2078]
[1760304561397,3.08663045,4118.5,4117.6,3.2078]
[1760304561702,0.43665,4118.5,4117.9,1.458]
[1760304561999,0.43665,4118.6,4118.1,0.43669]
[1760304562199,0.43665,4118.6,4118.2,0.43668]
[1760304562390,0.43663,4118.8,4118.3,1.458]
[1760304562593,0.43663,4118.8,4118.3,0.43667]
[1760304563692,0.43663,4118.8,4118.5,1.458]
[1760304563896,0.43663,4118.8,4118.4,0.6076]
[1760304564199,0.00178606,4119.6,4119.5,1.458]
[1760304564598,0.00178606,4119.6,4119.0,0.6076]
[1760304564599,0.43655,4119.5,4119.1,1.458]
[1760304564790,0.43657,4119.4,4119.1,1.458]
[1760304564991,0.43657,4119.4,4119.0,0.6076]
[1760304565192,0.00178606,4119.6,4119.2,0.43657]
[1760304565394,0.43832606,4119.6,4119.4,3.2078]
[1760304565591,0.43663,4118.8,4118.5,3.2078]
[1760304565789,0.43663,4118.8,4118.6,1.458]
[1760304565991,0.43662,4118.9,4118.1,0.43669]
[1760304566199,0.4366,4119.0,4118.7,1.458]
[1760304566401,0.43661,4118.9,4118.6,1.458]
[1760304566795,0.43661,4118.9,4118.5,3.64445]
[1760304566993,0.43661,4118.9,4118.6,1.458]
[1760304567396,3.2078,4119.4,4118.6,1.458]
[1760304567397,0.4366,4119.1,4118.7,1.458]
[1760304567701,0.43659,4119.1,4118.5,3.2078]
[1760304567890,0.43661,4119.0,4118.7,0.43663]
[1760304568096,0.43661,4119.0,4118.8,1.458]
[1760304568295,0.43661,4119.0,4118.7,0.43663]
[1760304568491,0.43661,4119.0,4118.8,1.458]
[1760304568797,0.43659,4119.1,4118.9,1.458]
[1760304569005,0.43659,4119.1,4118.8,0.43661]
[1760304569191,0.4366,4119.0,4118.8,0.43661]
[1760304569395,0.4366,4119.0,4118.5,3.2078]
[1760304569396,0.4366,4119.0,4118.9,1.458]
[1760304571004,0.43659,4119.2,4118.9,1.458]
[1760304571302,0.43659,4119.1,4119.0,1.458]
[1760304572001,0.00178606,4119.6,4118.8,1.458]
[1760304572195,0.00178606,4119.6,4119.4,0.43655]
[1760304572399,0.00178606,4119.6,4119.5,2.0656]
[1760304572703,3.2078,4119.9,4119.8,0.43652]
[1760304572902,3.2078,4119.9,4119.8,1.89452]
[1760304573103,3.2078,4119.9,4119.8,1.458]
[1760304573301,1.09115,4120.4,4119.5,0.6076]
[1760304573604,0.43653,4119.7,4119.6,1.458]
[1760304573904,0.00254713,4119.7,4119.6,1.89646068]
[1760304576208,0.00254713,4119.7,4119.6,3.18671286]
[1760304577207,0.00254713,4119.7,4119.6,1.89646068]
[1760304580100,1.09103,4120.9,4119.6,1.89646068]
[1760304580101,3.20514287,4121.0,4120.6,1.458]
[1760304580306,0.4364,4120.9,4120.8,1.458]
[1760304580602,2.76875287,4121.0,4120.8,1.89441]
[1760304580802,2.76875287,4121.0,4120.8,1.458]
[1760304581003,0.22,4121.3,4120.7,3.64421]
[1760304581210,0.4364,4120.9,4120.8,1.458]
[1760304581609,0.00280466,4121.0,4120.8,1.458]
[1760304581804,0.00280466,4121.0,4120.7,3.2078]
[1760304582006,0.43641,4120.8,4120.7,4.6658]
[1760304582208,0.43919466,4121.0,4120.7,3.64422]
[1760304582508,0.00280466,4121.0,4120.9,0.4364]
[1760304582806,0.43919466,4121.0,4120.9,1.458]
[1760304587814,0.43641,4120.8,4120.7,3.2078]
[1760304589710,0.43641,4120.8,4120.7,4.6632]
[1760304592111,0.00280466,4121.0,4120.9,1.8789]
[1760304592900,0.00280466,4121.0,4120.9,1.4425]
[1760304593107,0.43919466,4121.0,4120.9,1.4425]
[1760304593313,0.00280466,4121.0,4120.9,3.17889594]
[1760304593612,0.22,4121.3,4120.7,3.2078]
[1760304593613,0.022,4122.8,4122.0,0.6041]
[1760304593804,0.43626,4122.3,4122.1,1.4425]
[1760304594009,0.43627,4122.1,4122.0,0.6041]
[1760304594618,0.43908549,4122.1,4122.0,2.0466]
[1760304598012,0.43908549,4122.1,4121.7,4.50896246]
[1760304598013,0.4363,4121.8,4121.7,4.6503]
[1760304598209,0.4363,4121.8,4121.7,5.95146246]
[1760304598411,0.4363,4121.8,4121.7,4.6503]
[1760304598608,0.4363,4121.8,4121.7,1.4425]
[1760304599212,1.09351549,4122.1,4121.5,0.6041]
[1760304599213,0.43633,4121.6,4121.5,3.34776246]
[1760304599510,0.43633,4121.6,4121.5,2.0466]
[1760304600106,0.43633,4121.6,4121.5,1.4425]
[1760304600307,0.80444,4121.5,4121.4,1.30116246]
[1760304600510,0.43641,4120.8,4120.7,1.4425]
[1760304601508,0.43643,4120.6,4120.5,3.2078]
[1760304601714,0.43648,4120.1,4120.0,2.0466]
[1760304602707,4.22027939,4120.1,4119.6,0.00192068]
[1760304602911,0.80463,4119.7,4119.6,0.00192068]
[1760304603312,3.89323618,4119.7,4119.6,0.00192068]
[1760304604317,3.52513618,4119.7,4119.6,0.00192068]
[1760304604620,0.43653,4119.7,4119.6,1.44442068]
[1760304605519,0.4365,4120.0,4119.6,1.44442068]
[1760304605725,0.43652,4119.9,4119.7,1.4425]
[1760304605918,0.43652,4119.8,4119.7,1.4425]
[1760304609215,1.09117,4120.3,4119.7,1.4425]
[1760304609410,1.09114,4120.4,4119.7,1.4425]
[1760304609613,0.43652,4119.8,4119.7,1.4425]
[1760304610117,0.43649,4120.1,4120.0,0.6041]
[1760304610418,0.43649,4120.1,4120.0,5.2544]
[1760304610616,3.20655314,4120.6,4120.1,1.4425]
[1760304610818,3.2078,4121.4,4120.1,1.4425]
[1760304611027,0.43634,4121.5,4121.2,0.43636]
[1760304611216,0.43632,4121.7,4121.5,0.6041]
[1760304611418,0.43632,4121.7,4121.6,1.4425]
[1760304611619,0.43638,4121.1,4121.0,1.4425]
[1760304611824,0.43638,4121.1,4121.0,2.0466]
[1760304612923,3.20773,4121.9,4121.5,0.6041]
[1760304613115,3.20773,4121.9,4121.6,1.4425]
[1760304613317,3.20773,4121.9,4121.5,0.6041]
[1760304613515,3.20773,4121.9,4121.6,1.4425]
[1760304613825,0.43631,4121.8,4121.5,0.6041]
[1760304614023,0.43631,4121.8,4121.6,1.4425]
[1760304614224,0.43631,4121.8,4121.5,0.6041]
[1760304614419,3.20773,4121.9,4121.5,0.6041]
[1760304614621,0.80446,4121.3,4121.1,1.73404639]
[1760304614929,0.43645,4120.4,4120.2,1.4425]
[1760304615420,0.3681,4120.3,4119.5,0.6041]
[1760304615628,0.80463,4119.7,4119.2,3.2078]
[1760304616127,7.2010707,4119.7,4118.9,1.4425]
[1760304616822,7.2010707,4119.7,4118.7,3.2078]
[1760304616823,0.43662,4118.8,4118.7,3.2078]
[1760304617022,0.43668,4118.3,4118.1,3.2078]
[1760304617720,0.43668,4118.3,4118.1,3.20986108]
[1760304618027,3.54696381,4118.2,4118.1,3.20986108]
[1760304618329,3.54696381,4118.2,4118.1,0.00206108]
[1760304619229,0.4368,4117.1,4117.0,3.2078]
[1760304619724,0.4368,4117.1,4116.5,1.4425]
[1760304619725,0.43685,4116.7,4116.5,1.4425]
[1760304619924,0.43684,4116.8,4116.4,1.4425]
[1760304620221,0.43682,4117.0,4116.5,2.0466]
[1760304620432,0.43682,4117.0,4116.8,3.2078]
[1760304620731,3.09303265,4116.9,4116.8,3.2078]
[1760304621727,0.3681,4117.6,4116.8,4.6195]
[1760304622023,3.16400817,4117.5,4117.0,0.5613]
[1760304622219,3.16400817,4117.5,4117.1,1.4117]
[1760304622424,3.16400817,4117.5,4117.2,0.43679]
[1760304622624,0.43678,4117.4,4117.1,1.4117]
[1760304622825,0.43679,4117.3,4117.1,1.4117]
[1760304623020,0.43679,4117.3,4117.0,0.5613]
[1760304623226,0.43679,4117.3,4117.1,1.4117]
[1760304623625,3.16400817,4117.5,4117.1,1.4117]
[1760304623822,0.43679,4117.3,4117.1,1.4117]
[1760304625927,5.91347523,4118.6,4117.1,1.4117]
[1760304626124,0.34130665,4118.3,4117.5,1.4117]
[1760304626324,3.18705194,4117.8,4117.4,0.43677]
[1760304626628,0.00290665,4118.3,4118.1,1.4117]
[1760304626823,0.00290665,4118.3,4117.5,0.5613]
[1760304626824,0.00290665,4118.3,4118.0,0.5613]
[1760304627034,0.43656,4119.4,4118.6,1.4117]
[1760304627233,0.43655,4119.5,4119.1,0.43659]
[1760304627432,0.43656,4119.4,4119.0,0.5613]
[1760304627630,3.65275613,4119.4,4119.1,1.4117]
[1760304627830,3.21619613,4119.4,4119.1,0.43659]
[1760304628036,0.43658,4119.3,4119.0,0.5613]
[1760304628332,0.43658,4119.3,4119.1,1.4117]
[1760304629329,0.43658,4119.3,4119.0,0.9979]
[1760304629538,0.43658,4119.3,4119.1,1.4117]
[1760304630234,3.21856276,4119.4,4117.8,3.2078]
[1760304630235,0.43672,4117.9,4117.8,3.2078]
[1760304630432,0.43672,4117.9,4117.8,4.6195]
[1760304630622,0.43672,4117.9,4117.8,3.2078]
[1760304631229,0.43671,4118.1,4117.8,3.2078]
[1760304631537,3.56144,4118.0,4117.9,1.4117]
[1760304632036,0.43671,4118.0,4117.9,1.4117]
[1760304632332,0.43671,4118.0,4117.8,4.6195]
[1760304632538,0.43671,4118.0,4117.8,3.2078]
[1760304632737,0.43671,4118.0,4117.8,4.6195]
[1760304633035,0.43673,4117.8,4117.3,3.64457]
[1760304633334,0.43675,4117.7,4117.4,1.4117]
[1760304633534,0.43673,4117.9,4117.4,1.4117]
[1760304633737,0.43673,4117.8,4117.6,1.4117]
[1760304633935,0.43673,4117.8,4117.5,0.5613]
[1760304634136,0.43672,4118.0,4117.6,1.4117]
[1760304634439,0.43672,4117.9,4117.6,0.43675]
[1760304634641,0.43675,4117.6,4117.5,0.5613]
[1760304634843,0.43673,4117.8,4117.5,0.99806]
[1760304635035,1.09167,4118.5,4117.6,0.43675]
[1760304635238,0.43672,4117.9,4117.7,1.4117]
[1760304635441,0.43672,4117.9,4117.6,0.43675]
[1760304635744,0.43673,4117.8,4117.5,0.99806]
[1760304635939,3.5462,4118.7,4117.6,1.4117]
[1760304636134,0.43668,4118.3,4118.1,1.4117]
[1760304636336,4.23698206,4118.6,4117.7,1.4117]
[1760304636537,3.58205206,4118.2,4118.0,4.6195]
[1760304636737,0.43669,4118.2,4118.1,1.4117]
[1760304636940,0.43668,4118.3,4118.1,1.4117]
[1760304637347,3.20897673,4118.2,4118.1,1.84839]
[1760304637739,0.43668,4118.3,4118.1,1.4117]
[1760304637940,3.2078,4119.3,4118.1,1.4117]
[1760304638137,0.43661,4119.0,4118.9,1.4117]
[1760304638342,3.09637819,4119.0,4118.9,1.4117]
[1760304638642,3.09637819,4119.0,4118.8,0.43662]
[1760304638847,4.18785819,4119.2,4118.5,0.5613]
[1760304639049,1.09148,4119.2,4118.5,0.99795]
[1760304639241,0.43663,4118.7,4118.6,1.4117]
[1760304639442,0.43662,4118.9,4118.6,0.43664]
[1760304639648,3.13807298,4119.1,4118.8,1.4117]
[1760304639850,0.43663,4118.8,4118.5,0.5613]
[1760304640148,0.4366,4119.0,4118.6,1.4117]
[1760304640346,0.4366,4119.0,4118.6,0.43664]
[1760304640542,0.4366,4119.0,4118.7,1.4117]
[1760304640741,0.4366,4119.0,4118.7,1.84833]
[1760304640937,0.43662,4118.8,4118.6,1.4117]
[1760304641343,0.43662,4118.8,4118.0,0.5613]
[1760304641344,2.18296,4119.1,4118.0,3.7691]
[1760304641648,3.13362428,4118.7,4118.0,3.7691]
[1760304641848,6.34142428,4118.8,4118.0,3.7691]
[1760304642146,0.43669,4118.2,4118.1,1.4117]
[1760304642345,0.43669,4118.2,4117.5,3.2078]
[1760304642346,0.3384,4118.2,4117.5,3.2078]
[1760304642648,0.43671,4118.0,4117.5,3.64455]
[1760304642851,3.52182491,4118.2,4117.5,3.2078]
[1760304643049,3.18342491,4117.9,4117.6,1.4117]
[1760304643257,3.21016663,4119.4,4118.5,0.5613]
[1760304643556,0.43658,4119.2,4118.7,1.4117]
[1760304643756,1.378,4119.2,4118.9,0.43661]
[1760304643955,1.378,4119.2,4118.9,1.85561]
[1760304644157,1.378,4119.2,4118.9,0.43661]
[1760304644354,0.4366,4119.0,4118.6,0.43664]
[1760304644653,4.50062134,4119.1,4118.9,0.43661]
[1760304644956,3.12262134,4119.3,4119.1,0.43659]
[1760304645153,3.21016663,4119.4,4119.2,1.419]
[1760304645550,3.64672663,4119.4,4119.2,1.419]
[1760304645750,0.43658,4119.3,4119.0,0.4366]
[1760304645950,0.43661,4118.9,4118.6,1.85564]
[1760304646155,0.43665,4118.6,4118.4,3.2078]
[1760304646459,4.60066197,4118.5,4118.4,3.2078]
[1760304647049,4.93906197,4118.5,4118.4,3.2078]
[1760304648057,1.81472,4117.9,4117.8,3.2078]
[1760304649753,0.43672,4117.9,4117.8,4.6268]
[1760304650150,0.43672,4117.9,4117.8,3.2078]
[1760304650357,5.03557637,4117.9,4117.8,3.2078]
[1760304650554,5.69067637,4117.9,4117.3,3.2078]
[1760304650758,1.81477,4117.4,4117.3,3.2078]
[1760304651755,4.96851669,4117.4,4117.3,3.2078]
[1760304651956,4.96851669,4117.4,4116.7,1.419]
[1760304651957,0.43683,4116.8,4116.7,3.2078]
[1760304652156,1.80533,4116.8,4116.7,3.2078]
[1760304653468,1.80532,4117.0,4116.7,4.6228]
[1760304653867,3.2078,4117.8,4116.8,1.415]
[1760304653868,3.09081914,4117.3,4116.8,1.415]
[1760304654169,4.58400158,4117.4,4117.1,0.4368]
[1760304654464,1.3685,4117.4,4117.2,0.43679]
[1760304654869,0.43674,4117.7,4117.3,0.43677]
[1760304655060,1.3685,4117.6,4117.3,1.85177]
[1760304655261,1.80525,4117.6,4117.3,1.85177]
[1760304655462,3.1162134,4117.5,4117.3,1.85177]
[1760304656272,3.5529734,4117.5,4117.3,1.85177]
[1760304657069,3.5529734,4117.5,4117.3,1.415]
[1760304657271,0.43677,4117.4,4117.3,1.415]
[1760304657666,0.43677,4117.4,4117.1,1.85179]
[1760304658071,1.80527,4117.4,4117.1,1.85179]
[1760304658267,0.4368,4117.1,4117.0,1.72608397]
[1760304658570,0.4368,4117.1,4116.9,0.43682]
[1760304658571,1.3685,4117.0,4116.9,0.43682]
[1760304658975,0.4368,4117.1,4116.9,0.43682]
[1760304659573,1.80529,4117.3,4117.0,1.85181]
[1760304659777,1.80529,4117.3,4117.1,0.4368]
[1760304659973,3.18938303,4117.3,4116.9,1.72608397]
[1760304660170,0.4993,4117.0,4116.4,0.00288859]
[1760304660372,2.14377,4116.5,4116.4,0.00288859]
[1760304660569,2.14585853,4116.5,4116.4,0.00288859]
[1760304660772,0.43695,4115.7,4115.6,1.72608397]
[1760304660972,0.43696,4115.6,4115.4,1.72608397]
[1760304661172,0.43696,4115.6,4115.3,1.415]
[1760304661173,1.3685,4115.6,4115.3,1.415]
[1760304661478,1.3685,4115.6,4115.4,0.43698]
[1760304661479,0.08855849,4115.5,4115.4,0.43698]
[1760304661679,0.08855849,4115.5,4115.4,1.85505954]
[1760304662376,0.21529714,4115.9,4115.7,0.43695]
[1760304662672,3.15616438,4115.8,4115.5,0.43697]
[1760304662877,1.80547,4115.5,4115.4,0.00307954]
[1760304663172,2.39704942,4115.5,4115.4,0.00307954]
[1760304663371,5.60798145,4115.5,4115.4,0.00307954]
[1760304663580,1.3685,4114.7,4114.5,3.2078]
[1760304663872,0.43711,4114.3,4114.0,4.93388397]
[1760304664076,0.43711,4114.3,4114.0,3.2078]
[1760304664274,1.3685,4114.1,4114.0,3.2078]
[1760304664470,1.3685,4114.1,4114.0,3.21007451]
[1760304664670,1.3685,4115.4,4114.1,1.415]
[1760304664871,1.3685,4115.4,4114.7,3.2078]
[1760304665071,3.21427866,4115.2,4115.0,0.43702]
[1760304665275,1.37962417,4115.1,4115.0,0.43702]
[1760304665474,0.01112417,4115.1,4115.0,2.40362]
[1760304665679,0.01112417,4115.1,4115.0,1.85202]
[1760304665978,3.23613337,4115.1,4114.7,3.64485]
[1760304666172,0.4962,4115.0,4114.7,3.64485]
[1760304666373,1.3685,4114.8,4114.7,3.64485]
[1760304666778,1.45709078,4114.8,4114.7,3.64485]
[1760304667081,4.6681312,4114.8,4114.7,3.2078]
[1760304667481,4.67925537,4114.8,4114.7,3.2078]
[1760304670376,4.67925537,4114.8,4114.2,3.2078]
[1760304670377,5.11630537,4114.8,4114.2,3.2078]
[1760304670585,0.3384,4114.5,4114.2,3.2078]
[1760304670784,0.3384,4114.5,4114.0,0.00227451]
[1760304670785,1.3685,4114.1,4114.0,0.00227451]
[1760304671086,0.43716,4113.7,4113.6,3.2078]
[1760304671279,3.3141984,4114.1,4113.6,4.6228]
[1760304671477,0.43709,4114.4,4113.6,4.6228]
[1760304671478,1.37962417,4113.9,4113.8,0.43715]
[1760304671784,4.64798058,4113.9,4113.8,0.43715]
[1760304671987,0.01112417,4113.9,4113.8,1.85215]
[1760304672188,0.18826769,4113.9,4113.8,1.85488774]
[1760304672482,3.2078,4115.4,4113.8,1.41773774]
[1760304672688,0.3384,4116.0,4114.5,0.43707]
[1760304672689,0.4962,4115.0,4114.5,0.43707]
[1760304672883,0.26584341,4114.5,4114.4,0.43709]
[1760304673188,6.65364692,4114.5,4112.5,2.15983082]
[1760304673481,0.43748,4110.8,4110.5,0.5516]
[1760304673683,1.0934,4111.9,4110.5,0.5516]
[1760304673684,3.2078,4111.1,4110.5,0.5516]
[1760304673885,3.2078,4110.6,4110.0,0.5516]
[1760304674087,0.4376,4109.7,4109.5,0.5516]
[1760304674285,0.44012366,4109.7,4109.5,0.55475833]
[1760304674482,6.70200291,4109.6,4109.5,0.55475833]